[Event "Titled Tuesday Blitz February 21 Early 2023"]
[White "Erigaisi Arjun"]
[Black "Kvaloy, Aksel Bu"]
[WhiteFideId "35009192"]
[BlackFideId "1528815"]
[WhiteElo "2701"]
[BlackElo "2321"]
[Result "1-0"]
[Round "02"]
[TimeControl "180+2"]
[Date "2023.02.21"]
[WhiteClock "0:00:04"]
[BlackClock "0:00:02"]

1. c4 {[%clk 0:02:55]}  e5 {[%clk 0:02:59]} 2. Nc3 {[%clk 0:02:54]}  Nf6 {[%clk 0:02:59]} 3. e3 {[%clk 0:02:53]}  Nc6 {[%clk 0:02:59]} 4. Qb3 {[%clk 0:02:51]}  Bc5 {[%clk 0:02:55]} 5. Nf3 {[%clk 0:02:45]}  O-O {[%clk 0:02:54]} 6. d3 {[%clk 0:02:45]}  d6 {[%clk 0:02:54]} 7. Be2 {[%clk 0:02:44]}  Bg4 {[%clk 0:02:53]} 8. O-O {[%clk 0:02:43]}  Rb8 {[%clk 0:02:45]} 9. Rd1 {[%clk 0:02:41]}  Re8 {[%clk 0:02:44]} 10. h3 {[%clk 0:02:41]}  Bh5 {[%clk 0:02:43]} 11. a3 {[%clk 0:02:41]}  a6 {[%clk 0:02:43]} 12. Qc2 {[%clk 0:02:41]}  h6 {[%clk 0:02:39]} 13. b4 {[%clk 0:02:40]}  Ba7 {[%clk 0:02:39]} 14. Bb2 {[%clk 0:02:41]}  Bg6 {[%clk 0:02:39]} 15. Rac1 {[%clk 0:02:39]}  Qd7 {[%clk 0:02:31]} 16. Nd5 {[%clk 0:02:16]}  Nxd5 {[%clk 0:02:16]} 17. cxd5 {[%clk 0:02:17]}  Ne7 {[%clk 0:02:16]} 18. e4 {[%clk 0:02:16]}  Rbc8 {[%clk 0:02:14]} 19. Nh4 {[%clk 0:02:15]}  Bh7 {[%clk 0:02:04]} 20. Bg4 {[%clk 0:02:15]}  f5 {[%clk 0:02:03]} 21. exf5 {[%clk 0:02:16]}  Nxf5 {[%clk 0:02:04]} 22. d4 {[%clk 0:02:14]}  e4 {[%clk 0:01:51]} 23. Re1 {[%clk 0:01:58]}  Qf7 {[%clk 0:01:46]} 24. Bxf5 {[%clk 0:01:45]}  Bxf5 {[%clk 0:01:47]} 25. Nxf5 {[%clk 0:01:39]}  Qxf5 {[%clk 0:01:48]} 26. f3 {[%clk 0:01:40]}  Qxd5 {[%clk 0:01:48]} 27. Rxe4 {[%clk 0:01:40]}  Rxe4 {[%clk 0:01:43]} 28. fxe4 {[%clk 0:01:36]}  Qf7 {[%clk 0:01:25]} 29. Rf1 {[%clk 0:01:13]}  Qe7 {[%clk 0:01:24]} 30. Kh2 {[%clk 0:00:57]}  Re8 {[%clk 0:01:23]} 31. d5 {[%clk 0:00:51]}  Bb6 {[%clk 0:01:07]} 32. Rf4 {[%clk 0:00:47]}  Be3 {[%clk 0:00:32]} 33. Rg4 {[%clk 0:00:40]}  Bg5 {[%clk 0:00:32]} 34. h4 {[%clk 0:00:24]}  Bf6 {[%clk 0:00:32]} 35. Bxf6 {[%clk 0:00:25]}  Qxf6 {[%clk 0:00:33]} 36. Qxc7 {[%clk 0:00:25]}  h5 {[%clk 0:00:29]} 37. Rg5 {[%clk 0:00:24]}  Qf4+ {[%clk 0:00:29]} 38. Kh3 {[%clk 0:00:22]}  Qf6 {[%clk 0:00:21]} 39. Qxb7 {[%clk 0:00:19]}  Rxe4 {[%clk 0:00:20]} 40. Qc8+ {[%clk 0:00:20]}  Kh7 {[%clk 0:00:18]} 41. Rxh5+ {[%clk 0:00:18]}  Kg6 {[%clk 0:00:14]} 42. Rg5+ {[%clk 0:00:18]}  Kh7 {[%clk 0:00:13]} 43. Qf5+ {[%clk 0:00:08]}  Qxf5+ {[%clk 0:00:14]} 44. Rxf5 {[%clk 0:00:08]}  Kg6 {[%clk 0:00:14]} 45. Rg5+ {[%clk 0:00:07]}  Kf6 {[%clk 0:00:14]} 46. Rg4 {[%clk 0:00:06]}  Re5 {[%clk 0:00:07]} 47. Rf4+ {[%clk 0:00:06]}  Ke7 {[%clk 0:00:08]} 48. Rd4 {[%clk 0:00:04]}  Re3+ {[%clk 0:00:08]} 49. Kg4 {[%clk 0:00:04]}  Rxa3 {[%clk 0:00:09]} 50. Rc4 {[%clk 0:00:04]}  Rd3 {[%clk 0:00:08]} 51. Rc7+ {[%clk 0:00:02]}  Kf6 {[%clk 0:00:08]} 52. Rc6 {[%clk 0:00:02]}  Rxd5 {[%clk 0:00:08]} 53. Rxa6 {[%clk 0:00:03]}  Rd4+ {[%clk 0:00:09]} 54. Kh3 {[%clk 0:00:03]}  Rxb4 {[%clk 0:00:08]} 55. Rxd6+ {[%clk 0:00:04]}  Ke7 {[%clk 0:00:08]} 56. Rg6 {[%clk 0:00:04]}  Kf7 {[%clk 0:00:08]} 57. h5 {[%clk 0:00:05]}  Rc4 {[%clk 0:00:06]} 58. Ra6 {[%clk 0:00:04]}  Rb4 {[%clk 0:00:06]} 59. g4 {[%clk 0:00:04]}  Rb1 {[%clk 0:00:05]} 60. Kh4 {[%clk 0:00:04]}  Rb5 {[%clk 0:00:05]} 61. Ra7+ {[%clk 0:00:04]}  Kg8 {[%clk 0:00:04]} 62. Rc7 {[%clk 0:00:04]}  Kh7 {[%clk 0:00:04]} 63. Rc6 {[%clk 0:00:05]}  Ra5 {[%clk 0:00:04]} 64. Rc4 {[%clk 0:00:05]}  Rb5 {[%clk 0:00:04]} 65. Re4 {[%clk 0:00:05]}  Ra5 {[%clk 0:00:03]} 66. g5 {[%clk 0:00:06]}  Ra1 {[%clk 0:00:03]} 67. Kg4 {[%clk 0:00:05]}  Rg1+ {[%clk 0:00:03]} 68. Kf5 {[%clk 0:00:06]}  Rf1+ {[%clk 0:00:04]} 69. Rf4 {[%clk 0:00:06]}  Ra1 {[%clk 0:00:04]} 70. Rd4 {[%clk 0:00:04]}  Rf1+ {[%clk 0:00:04]} 71. Rf4 {[%clk 0:00:04]}  Ra1 {[%clk 0:00:04]} 72. Re4 {[%clk 0:00:05]}  Rf1+ {[%clk 0:00:04]} 73. Ke6 {[%clk 0:00:06]}  Rg1 {[%clk 0:00:05]} 74. Re5 {[%clk 0:00:05]}  Rf1 {[%clk 0:00:05]} 75. Rf5 {[%clk 0:00:05]}  Ra1 {[%clk 0:00:03]} 76. Rf7 {[%clk 0:00:05]}  Ra6+ {[%clk 0:00:03]} 77. Kf5 {[%clk 0:00:04]}  Ra5+ {[%clk 0:00:04]} 78. Kg4 {[%clk 0:00:05]}  Ra4+ {[%clk 0:00:05]} 79. Rf4 {[%clk 0:00:05]}  Ra1 {[%clk 0:00:06]} 80. Rb4 {[%clk 0:00:04]}  Rg1+ {[%clk 0:00:05]} 81. Kf5 {[%clk 0:00:05]}  Rf1+ {[%clk 0:00:06]} 82. Ke5 {[%clk 0:00:05]}  Re1+ {[%clk 0:00:06]} 83. Re4 {[%clk 0:00:06]}  Ra1 {[%clk 0:00:06]} 84. Ke6 {[%clk 0:00:05]}  Ra5 {[%clk 0:00:06]} 85. Re5 {[%clk 0:00:05]}  Ra6+ {[%clk 0:00:06]} 86. Kf7 {[%clk 0:00:05]}  Ra7+ {[%clk 0:00:06]} 87. Re7 {[%clk 0:00:06]}  Ra5 {[%clk 0:00:06]} 88. g6+ {[%clk 0:00:05]}  Kh6 {[%clk 0:00:07]} 89. Kf8 {[%clk 0:00:04]}  Ra8+ {[%clk 0:00:06]} 90. Kf7 {[%clk 0:00:04]}  Ra6 {[%clk 0:00:06]} 91. Re8 {[%clk 0:00:02]}  Rf6+ {[%clk 0:00:06]} 92. Kg8 {[%clk 0:00:02]}  Rf5 {[%clk 0:00:04]} 93. Re7 {[%clk 0:00:01]}  Ra5 {[%clk 0:00:04]} 94. Rf7 {[%clk 0:00:02]}  Ra8+ {[%clk 0:00:04]} 95. Rf8 {[%clk 0:00:02]}  Ra7 {[%clk 0:00:04]} 96. Rf7 {[%clk 0:00:02]}  Ra8+ {[%clk 0:00:05]} 97. Rf8 {[%clk 0:00:03]}  Ra7 {[%clk 0:00:05]} 98. Kh8 {[%clk 0:00:03]}  Kxh5 {[%clk 0:00:04]} 99. Kh7 {[%clk 0:00:04]}  Ra6 {[%clk 0:00:02]} 100. Rf5+ {[%clk 0:00:04]}  Kg4 {[%clk 0:00:03]} 101. Rb5 {[%clk 0:00:04]}  Ra7 {[%clk 0:00:03]} 102. Kg8 {[%clk 0:00:04]}  Kh4 {[%clk 0:00:03]} 103. Kh7 {[%clk 0:00:04]}  Kg4 {[%clk 0:00:03]} 104. Rc5 {[%clk 0:00:04]}  Rb7 {[%clk 0:00:03]} 105. Ra5 {[%clk 0:00:05]}  Rc7 {[%clk 0:00:04]} 106. Re5 {[%clk 0:00:05]}  Rb7 {[%clk 0:00:04]} 107. Re8 {[%clk 0:00:05]}  Kg5 {[%clk 0:00:04]} 108. Rf8 {[%clk 0:00:04]}  Rb6 {[%clk 0:00:04]} 109. Ra8 {[%clk 0:00:05]}  Rc6 {[%clk 0:00:04]} 110. Ra5+ {[%clk 0:00:04]}  Kf6 {[%clk 0:00:04]} 111. Ra1 {[%clk 0:00:04]}  Rc7 {[%clk 0:00:02]} 112. Rf1+ {[%clk 0:00:05]}  Kg5 {[%clk 0:00:02]} 113. Rf7 {[%clk 0:00:05]}  Rc6 {[%clk 0:00:03]} 114. Rxg7 {[%clk 0:00:05]}  Kh5 {[%clk 0:00:02]} 115. Rg8 {[%clk 0:00:04]}  Kg5 {[%clk 0:00:02]} 116. Ra8 {[%clk 0:00:04]} 1-0


[Site "https://www.chess.com"]

[Event "Titled Tuesday Blitz February 21 Early 2023"]
[White "Budisavljevic, Luka"]
[Black "Navara, David"]
[WhiteFideId "960047"]
[BlackFideId "309095"]
[WhiteElo "2488"]
[BlackElo "2678"]
[Result "1/2-1/2"]
[Round "02"]
[TimeControl "180+2"]
[Date "2023.02.21"]
[WhiteClock "0:00:56"]
[BlackClock "0:00:43"]

1. d4 {[%clk 0:03:00]}  d5 {[%clk 0:02:59]} 2. Nf3 {[%clk 0:03:00]}  Nf6 {[%clk 0:02:59]} 3. e3 {[%clk 0:03:01]}  c5 {[%clk 0:02:59]} 4. c4 {[%clk 0:03:01]}  cxd4 {[%clk 0:02:57]} 5. exd4 {[%clk 0:03:01]}  g6 {[%clk 0:02:55]} 6. Nc3 {[%clk 0:03:01]}  Bg7 {[%clk 0:02:55]} 7. cxd5 {[%clk 0:02:59]}  Nxd5 {[%clk 0:02:49]} 8. Bc4 {[%clk 0:02:55]}  Nb6 {[%clk 0:02:48]} 9. Bb3 {[%clk 0:02:56]}  O-O {[%clk 0:02:48]} 10. O-O {[%clk 0:02:51]}  Bg4 {[%clk 0:02:48]} 11. h3 {[%clk 0:02:50]}  Bxf3 {[%clk 0:02:47]} 12. Qxf3 {[%clk 0:02:51]}  Nc6 {[%clk 0:02:48]} 13. d5 {[%clk 0:02:52]}  Nd4 {[%clk 0:02:42]} 14. Qd1 {[%clk 0:02:49]}  Nxb3 {[%clk 0:02:42]} 15. axb3 {[%clk 0:02:49]}  Bxc3 {[%clk 0:02:42]} 16. bxc3 {[%clk 0:02:50]}  Qxd5 {[%clk 0:02:25]} 17. Be3 {[%clk 0:02:50]}  e6 {[%clk 0:01:21]} 18. c4 {[%clk 0:02:35]}  Qxd1 {[%clk 0:01:18]} 19. Rfxd1 {[%clk 0:02:36]}  Rfc8 {[%clk 0:01:07]} 20. Rd6 {[%clk 0:02:21]}  Kf8 {[%clk 0:00:53]} 21. Bxb6 {[%clk 0:02:03]}  axb6 {[%clk 0:00:53]} 22. Rxa8 {[%clk 0:02:04]}  Rxa8 {[%clk 0:00:54]} 23. Rxb6 {[%clk 0:02:04]}  Ra7 {[%clk 0:00:52]} 24. c5 {[%clk 0:01:43]}  Ke7 {[%clk 0:00:50]} 25. c6 {[%clk 0:01:13]}  bxc6 {[%clk 0:00:51]} 26. Rxc6 {[%clk 0:01:13]}  Ra2 {[%clk 0:00:50]} 27. g4 {[%clk 0:01:06]}  Rb2 {[%clk 0:00:50]} 28. Rc3 {[%clk 0:01:05]}  g5 {[%clk 0:00:50]} 29. Kg2 {[%clk 0:01:05]}  f5 {[%clk 0:00:42]} 30. gxf5 {[%clk 0:01:03]}  exf5 {[%clk 0:00:43]} 31. Rc7+ {[%clk 0:00:55]}  Kf6 {[%clk 0:00:43]} 32. Rxh7 {[%clk 0:00:56]}  Rxb3 {[%clk 0:00:43]} 1/2-1/2


[Site "https://www.chess.com"]

[Event "Titled Tuesday Blitz February 21 Early 2023"]
[White "Terry, Renato"]
[Black "WindWhistler11"]
[WhiteFideId "3803457"]
[WhiteElo "2520"]
[BlackElo "2536"]
[Result "1-0"]
[Round "02"]
[TimeControl "180+2"]
[Date "2023.02.21"]
[WhiteClock "0:00:37"]
[BlackClock "0:00:01"]

1. e4 {[%clk 0:03:00]}  e6 {[%clk 0:02:59]} 2. d4 {[%clk 0:03:01]}  d5 {[%clk 0:02:59]} 3. exd5 {[%clk 0:03:01]}  exd5 {[%clk 0:02:59]} 4. Nf3 {[%clk 0:03:02]}  Ne7 {[%clk 0:03:00]} 5. Bd3 {[%clk 0:03:01]}  Nbc6 {[%clk 0:03:00]} 6. c3 {[%clk 0:02:59]}  Bg4 {[%clk 0:02:59]} 7. O-O {[%clk 0:02:59]}  f6 {[%clk 0:02:58]} 8. Nbd2 {[%clk 0:02:54]}  Qd7 {[%clk 0:02:57]} 9. b4 {[%clk 0:02:52]}  g6 {[%clk 0:02:35]} 10. Nb3 {[%clk 0:02:39]}  b6 {[%clk 0:02:33]} 11. Re1 {[%clk 0:02:39]}  Bg7 {[%clk 0:02:24]} 12. h3 {[%clk 0:02:18]}  Be6 {[%clk 0:02:21]} 13. b5 {[%clk 0:02:10]}  Nd8 {[%clk 0:02:20]} 14. a4 {[%clk 0:02:06]}  O-O {[%clk 0:02:15]} 15. a5 {[%clk 0:02:06]}  Re8 {[%clk 0:01:50]} 16. Bf4 {[%clk 0:02:02]}  Nf7 {[%clk 0:01:38]} 17. Bxc7 {[%clk 0:01:50]}  Bxh3 {[%clk 0:01:32]} 18. axb6 {[%clk 0:01:49]}  axb6 {[%clk 0:01:18]} 19. Rxa8 {[%clk 0:01:40]}  Rxa8 {[%clk 0:01:19]} 20. Bxb6 {[%clk 0:01:40]}  Qg4 {[%clk 0:00:32]} 21. Bf1 {[%clk 0:01:39]}  Nf5 {[%clk 0:00:26]} 22. Bc7 {[%clk 0:01:35]}  Ng5 {[%clk 0:00:20]} 23. Nxg5 {[%clk 0:00:55]}  Qxg5 {[%clk 0:00:21]} 24. b6 {[%clk 0:00:50]}  Nh4 {[%clk 0:00:17]} 25. g3 {[%clk 0:00:50]}  Bxf1 {[%clk 0:00:05]} 26. b7 {[%clk 0:00:38]}  Rf8 {[%clk 0:00:01]} 27. Kxf1 {[%clk 0:00:37]} 1-0


[Site "https://www.chess.com"]

[Event "Titled Tuesday Blitz February 21 Early 2023"]
[White "Yurovskykh, Oleksandr"]
[Black "Indjic, Aleksandar"]
[WhiteFideId "14134020"]
[BlackFideId "911925"]
[WhiteElo "2328"]
[BlackElo "2618"]
[Result "1/2-1/2"]
[Round "02"]
[TimeControl "180+2"]
[Date "2023.02.21"]
[WhiteClock "0:00:11"]
[BlackClock "0:00:18"]

1. d4 {[%clk 0:02:58]}  Nf6 {[%clk 0:02:59]} 2. Nf3 {[%clk 0:02:58]}  e6 {[%clk 0:02:59]} 3. Bf4 {[%clk 0:02:58]}  c5 {[%clk 0:03:00]} 4. c3 {[%clk 0:02:58]}  Nc6 {[%clk 0:02:58]} 5. e3 {[%clk 0:02:58]}  Nh5 {[%clk 0:02:56]} 6. Bg5 {[%clk 0:02:57]}  Qb6 {[%clk 0:02:54]} 7. Qb3 {[%clk 0:02:57]}  h6 {[%clk 0:02:53]} 8. Bh4 {[%clk 0:02:57]}  g5 {[%clk 0:02:50]} 9. Qxb6 {[%clk 0:02:57]}  axb6 {[%clk 0:02:49]} 10. Bg3 {[%clk 0:02:57]}  Nxg3 {[%clk 0:02:46]} 11. hxg3 {[%clk 0:02:58]}  g4 {[%clk 0:02:46]} 12. Ng1 {[%clk 0:02:50]}  f5 {[%clk 0:02:39]} 13. Nd2 {[%clk 0:02:49]}  d5 {[%clk 0:02:38]} 14. Ne2 {[%clk 0:02:43]}  c4 {[%clk 0:02:37]} 15. a3 {[%clk 0:02:43]}  b5 {[%clk 0:02:37]} 16. Rc1 {[%clk 0:02:43]}  Kf7 {[%clk 0:02:34]} 17. Nf4 {[%clk 0:02:43]}  Bd6 {[%clk 0:02:32]} 18. Be2 {[%clk 0:02:43]}  Ne7 {[%clk 0:02:30]} 19. f3 {[%clk 0:02:37]}  e5 {[%clk 0:02:29]} 20. dxe5 {[%clk 0:02:36]}  Bxe5 {[%clk 0:02:30]} 21. Bd1 {[%clk 0:02:29]}  Bxf4 {[%clk 0:02:13]} 22. gxf4 {[%clk 0:02:25]}  h5 {[%clk 0:02:08]} 23. g3 {[%clk 0:02:18]}  Bd7 {[%clk 0:02:04]} 24. Bc2 {[%clk 0:02:17]}  Ng6 {[%clk 0:02:03]} 25. Kf2 {[%clk 0:02:16]}  Kf6 {[%clk 0:01:59]} 26. Rh2 {[%clk 0:02:15]}  Ne7 {[%clk 0:01:50]} 27. Rch1 {[%clk 0:02:11]}  Be8 {[%clk 0:01:51]} 28. Rh4 {[%clk 0:02:00]}  Bg6 {[%clk 0:01:50]} 29. Nf1 {[%clk 0:01:42]}  Kg7 {[%clk 0:01:34]} 30. Nd2 {[%clk 0:01:23]}  Rad8 {[%clk 0:01:22]} 31. R4h2 {[%clk 0:01:19]}  Nc8 {[%clk 0:01:12]} 32. Rd1 {[%clk 0:00:50]}  Nb6 {[%clk 0:01:10]} 33. Nf1 {[%clk 0:00:42]}  Rd6 {[%clk 0:00:56]} 34. Kg1 {[%clk 0:00:35]}  Rhd8 {[%clk 0:00:52]} 35. Rhd2 {[%clk 0:00:35]}  R6d7 {[%clk 0:00:53]} 36. Kf2 {[%clk 0:00:34]}  Kf6 {[%clk 0:00:52]} 37. Rd4 {[%clk 0:00:34]}  Bf7 {[%clk 0:00:51]} 38. Nd2 {[%clk 0:00:23]}  Bg6 {[%clk 0:00:50]} 39. Rh1 {[%clk 0:00:22]}  Kg7 {[%clk 0:00:48]} 40. Ke2 {[%clk 0:00:20]}  Rd6 {[%clk 0:00:46]} 41. Nb1 {[%clk 0:00:20]}  Nd7 {[%clk 0:00:46]} 42. Rhd1 {[%clk 0:00:16]}  Nf6 {[%clk 0:00:46]} 43. Nd2 {[%clk 0:00:17]}  Re6 {[%clk 0:00:43]} 44. Nf1 {[%clk 0:00:17]}  Rde8 {[%clk 0:00:43]} 45. Kf2 {[%clk 0:00:18]}  gxf3 {[%clk 0:00:42]} 46. Kxf3 {[%clk 0:00:19]}  h4 {[%clk 0:00:43]} 47. Kf2 {[%clk 0:00:19]}  h3 {[%clk 0:00:40]} 48. Rxd5 {[%clk 0:00:17]}  h2 {[%clk 0:00:34]} 49. Nxh2 {[%clk 0:00:16]}  Nxd5 {[%clk 0:00:34]} 50. Rxd5 {[%clk 0:00:16]}  Rxe3 {[%clk 0:00:35]} 51. Rd2 {[%clk 0:00:16]}  Bh5 {[%clk 0:00:32]} 52. Bxf5 {[%clk 0:00:14]}  Re2+ {[%clk 0:00:33]} 53. Rxe2 {[%clk 0:00:15]}  Rxe2+ {[%clk 0:00:33]} 54. Kg1 {[%clk 0:00:15]}  Rxb2 {[%clk 0:00:33]} 55. g4 {[%clk 0:00:16]}  Bf7 {[%clk 0:00:32]} 56. Nf3 {[%clk 0:00:16]}  Rb3 {[%clk 0:00:31]} 57. Nd4 {[%clk 0:00:16]}  Rxc3 {[%clk 0:00:31]} 58. Nxb5 {[%clk 0:00:17]}  Rb3 {[%clk 0:00:31]} 59. Nd4 {[%clk 0:00:14]}  Rxa3 {[%clk 0:00:31]} 60. g5 {[%clk 0:00:13]}  Ra1+ {[%clk 0:00:25]} 61. Kf2 {[%clk 0:00:13]}  Rd1 {[%clk 0:00:26]} 62. Ke3 {[%clk 0:00:13]}  c3 {[%clk 0:00:25]} 63. Bc2 {[%clk 0:00:13]}  Rd2 {[%clk 0:00:26]} 64. f5 {[%clk 0:00:13]}  Kf8 {[%clk 0:00:20]} 65. f6 {[%clk 0:00:13]}  b5 {[%clk 0:00:20]} 66. g6 {[%clk 0:00:12]}  Rxc2 {[%clk 0:00:18]} 67. g7+ {[%clk 0:00:12]}  Kg8 {[%clk 0:00:18]} 68. Nxc2 {[%clk 0:00:12]}  Bg6 {[%clk 0:00:18]} 69. Nb4 {[%clk 0:00:11]}  Bh7 {[%clk 0:00:17]} 70. Na2 {[%clk 0:00:11]}  c2 {[%clk 0:00:17]} 71. Kd2 {[%clk 0:00:11]}  Kf7 {[%clk 0:00:17]} 72. Nb4 {[%clk 0:00:11]}  Kxf6 {[%clk 0:00:17]} 73. Nxc2 {[%clk 0:00:11]}  Kxg7 {[%clk 0:00:18]} 74. Nd4 {[%clk 0:00:11]}  Bg6 {[%clk 0:00:18]} 75. Nxb5 {[%clk 0:00:11]} 1/2-1/2


[Site "https://www.chess.com"]

[Event "Titled Tuesday Blitz February 21 Early 2023"]
[White "Vokhidov, Shamsiddin"]
[Black "Dixit, Nikhil"]
[WhiteFideId "14204223"]
[BlackFideId "5059534"]
[WhiteElo "2586"]
[BlackElo "2257"]
[Result "1-0"]
[Round "02"]
[TimeControl "180+2"]
[Date "2023.02.21"]
[WhiteClock "0:02:16"]
[BlackClock "0:00:33"]

1. e4 {[%clk 0:03:00]}  g6 {[%clk 0:02:54]} 2. d4 {[%clk 0:03:00]}  Bg7 {[%clk 0:02:54]} 3. Nf3 {[%clk 0:03:01]}  d6 {[%clk 0:02:52]} 4. Bc4 {[%clk 0:03:01]}  Nf6 {[%clk 0:02:52]} 5. Qe2 {[%clk 0:03:01]}  O-O {[%clk 0:02:52]} 6. e5 {[%clk 0:03:01]}  dxe5 {[%clk 0:02:52]} 7. dxe5 {[%clk 0:03:02]}  Nd5 {[%clk 0:02:52]} 8. O-O {[%clk 0:03:03]}  Bg4 {[%clk 0:02:52]} 9. Nbd2 {[%clk 0:03:01]}  Nc6 {[%clk 0:02:50]} 10. Qe4 {[%clk 0:03:00]}  Bxf3 {[%clk 0:02:47]} 11. Nxf3 {[%clk 0:03:01]}  e6 {[%clk 0:02:47]} 12. Rd1 {[%clk 0:03:00]}  Qe7 {[%clk 0:02:41]} 13. Bg5 {[%clk 0:02:55]}  Qc5 {[%clk 0:02:39]} 14. Bxd5 {[%clk 0:02:55]}  exd5 {[%clk 0:02:39]} 15. Rxd5 {[%clk 0:02:56]}  Qb6 {[%clk 0:02:35]} 16. b3 {[%clk 0:02:54]}  Rae8 {[%clk 0:02:29]} 17. Re1 {[%clk 0:02:53]}  Nb4 {[%clk 0:02:10]} 18. Rd7 {[%clk 0:02:49]}  Nxa2 {[%clk 0:02:01]} 19. Be7 {[%clk 0:02:48]}  Qe6 {[%clk 0:01:56]} 20. Bxf8 {[%clk 0:02:37]}  Qxd7 {[%clk 0:01:54]} 21. Bxg7 {[%clk 0:02:37]}  Kxg7 {[%clk 0:01:55]} 22. Qxb7 {[%clk 0:02:38]}  a5 {[%clk 0:01:44]} 23. Qa7 {[%clk 0:02:30]}  a4 {[%clk 0:00:55]} 24. Qxa4 {[%clk 0:02:27]}  Qxa4 {[%clk 0:00:52]} 25. bxa4 {[%clk 0:02:28]}  Ra8 {[%clk 0:00:46]} 26. e6 {[%clk 0:02:17]}  fxe6 {[%clk 0:00:44]} 27. Rxe6 {[%clk 0:02:18]}  Rxa4 {[%clk 0:00:43]} 28. Re7+ {[%clk 0:02:17]}  Kf6 {[%clk 0:00:44]} 29. Rxc7 {[%clk 0:02:18]}  h5 {[%clk 0:00:39]} 30. g3 {[%clk 0:02:14]}  Nb4 {[%clk 0:00:29]} 31. Rc4 {[%clk 0:02:12]}  Ra1+ {[%clk 0:00:29]} 32. Kg2 {[%clk 0:02:12]}  Nd5 {[%clk 0:00:29]} 33. Rc6+ {[%clk 0:02:13]}  Kg7 {[%clk 0:00:29]} 34. Ne5 {[%clk 0:02:12]}  g5 {[%clk 0:00:29]} 35. Rg6+ {[%clk 0:02:10]}  Kf8 {[%clk 0:00:30]} 36. Rxg5 {[%clk 0:02:11]}  Re1 {[%clk 0:00:30]} 37. Nd7+ {[%clk 0:02:10]}  Ke7 {[%clk 0:00:30]} 38. Rxd5 {[%clk 0:02:11]}  h4 {[%clk 0:00:27]} 39. Re5+ {[%clk 0:02:11]}  Rxe5 {[%clk 0:00:27]} 40. Nxe5 {[%clk 0:02:10]}  h3+ {[%clk 0:00:27]} 41. Kxh3 {[%clk 0:02:11]}  Kf6 {[%clk 0:00:28]} 42. f4 {[%clk 0:02:12]}  Kg7 {[%clk 0:00:28]} 43. c4 {[%clk 0:02:12]}  Kh8 {[%clk 0:00:29]} 44. c5 {[%clk 0:02:13]}  Kh7 {[%clk 0:00:30]} 45. c6 {[%clk 0:02:14]}  Kh8 {[%clk 0:00:31]} 46. c7 {[%clk 0:02:15]}  Kh7 {[%clk 0:00:32]} 47. c8=Q {[%clk 0:02:16]}  Kh6 {[%clk 0:00:33]} 48. Qg8 {[%clk 0:02:15]}  Kh5 {[%clk 0:00:33]} 49. Qg5# {[%clk 0:02:16]} 1-0


[Site "https://www.chess.com"]

[Event "Titled Tuesday Blitz February 21 Early 2023"]
[White "Lymar, Vladislav"]
[Black "Timofeev, Artyom"]
[WhiteFideId "14162180"]
[BlackFideId "4140419"]
[WhiteElo "2119"]
[BlackElo "2567"]
[Result "1/2-1/2"]
[Round "02"]
[TimeControl "180+2"]
[Date "2023.02.21"]
[WhiteClock "0:00:03"]
[BlackClock "0:00:05"]

1. e4 {[%clk 0:03:00]}  d6 {[%clk 0:02:59]} 2. d4 {[%clk 0:02:59]}  Nf6 {[%clk 0:02:59]} 3. Nc3 {[%clk 0:02:59]}  g6 {[%clk 0:02:59]} 4. g3 {[%clk 0:02:59]}  Bg7 {[%clk 0:02:58]} 5. Bg2 {[%clk 0:02:59]}  O-O {[%clk 0:02:58]} 6. Nge2 {[%clk 0:02:59]}  c6 {[%clk 0:02:58]} 7. a4 {[%clk 0:02:58]}  e5 {[%clk 0:02:57]} 8. h3 {[%clk 0:02:57]}  Nbd7 {[%clk 0:02:55]} 9. Be3 {[%clk 0:02:57]}  Re8 {[%clk 0:02:55]} 10. d5 {[%clk 0:02:50]}  Nb6 {[%clk 0:02:41]} 11. b3 {[%clk 0:02:47]}  cxd5 {[%clk 0:02:41]} 12. exd5 {[%clk 0:02:48]}  a6 {[%clk 0:02:35]} 13. g4 {[%clk 0:02:41]}  e4 {[%clk 0:02:26]} 14. O-O {[%clk 0:02:35]}  h6 {[%clk 0:02:04]} 15. Qd2 {[%clk 0:02:26]}  Kh7 {[%clk 0:02:00]} 16. Rad1 {[%clk 0:02:17]}  Nbd7 {[%clk 0:01:58]} 17. Ng3 {[%clk 0:02:13]}  Ne5 {[%clk 0:01:52]} 18. Ncxe4 {[%clk 0:02:06]}  Nxe4 {[%clk 0:01:52]} 19. Bxe4 {[%clk 0:02:01]}  Qh4 {[%clk 0:01:48]} 20. Kg2 {[%clk 0:01:43]}  Kg8 {[%clk 0:01:19]} 21. Bd4 {[%clk 0:01:25]}  b5 {[%clk 0:01:15]} 22. f4 {[%clk 0:01:24]}  Nd7 {[%clk 0:01:12]} 23. Bxg7 {[%clk 0:01:23]}  Kxg7 {[%clk 0:01:12]} 24. Qd4+ {[%clk 0:01:09]}  Qf6 {[%clk 0:01:11]} 25. Qxf6+ {[%clk 0:01:05]}  Nxf6 {[%clk 0:01:11]} 26. Bf3 {[%clk 0:01:05]}  bxa4 {[%clk 0:01:10]} 27. bxa4 {[%clk 0:01:06]}  Bd7 {[%clk 0:01:08]} 28. a5 {[%clk 0:01:04]}  Rac8 {[%clk 0:01:07]} 29. Rd2 {[%clk 0:00:56]}  Bb5 {[%clk 0:01:03]} 30. Rb1 {[%clk 0:00:50]}  Rc4 {[%clk 0:00:50]} 31. Be2 {[%clk 0:00:46]}  Rc5 {[%clk 0:00:48]} 32. Bxb5 {[%clk 0:00:46]}  axb5 {[%clk 0:00:48]} 33. Rbd1 {[%clk 0:00:36]}  b4 {[%clk 0:00:45]} 34. g5 {[%clk 0:00:36]}  hxg5 {[%clk 0:00:45]} 35. fxg5 {[%clk 0:00:37]}  Nd7 {[%clk 0:00:45]} 36. Rd4 {[%clk 0:00:36]}  Rxc2+ {[%clk 0:00:44]} 37. R1d2 {[%clk 0:00:36]}  Rxd2+ {[%clk 0:00:41]} 38. Rxd2 {[%clk 0:00:37]}  Nc5 {[%clk 0:00:42]} 39. Ne2 {[%clk 0:00:34]}  Ra8 {[%clk 0:00:40]} 40. Ra2 {[%clk 0:00:24]}  b3 {[%clk 0:00:39]} 41. Ra3 {[%clk 0:00:22]}  b2 {[%clk 0:00:38]} 42. Nc3 {[%clk 0:00:23]}  Ra6 {[%clk 0:00:26]} 43. Kf3 {[%clk 0:00:16]}  Nb7 {[%clk 0:00:24]} 44. Rb3 {[%clk 0:00:14]}  Nxa5 {[%clk 0:00:23]} 45. Rxb2 {[%clk 0:00:15]}  Nc4 {[%clk 0:00:24]} 46. Rb4 {[%clk 0:00:14]}  Ne5+ {[%clk 0:00:22]} 47. Ke4 {[%clk 0:00:12]}  Nd7 {[%clk 0:00:20]} 48. Rc4 {[%clk 0:00:11]}  Nc5+ {[%clk 0:00:19]} 49. Kd4 {[%clk 0:00:11]}  Nb3+ {[%clk 0:00:19]} 50. Ke3 {[%clk 0:00:11]}  Ra5 {[%clk 0:00:16]} 51. Rc6 {[%clk 0:00:09]}  Ra3 {[%clk 0:00:13]} 52. Rxd6 {[%clk 0:00:06]}  Na5 {[%clk 0:00:10]} 53. Kd4 {[%clk 0:00:06]}  Nb3+ {[%clk 0:00:10]} 54. Kd3 {[%clk 0:00:06]}  Nc5+ {[%clk 0:00:09]} 55. Kd4 {[%clk 0:00:04]}  Rxc3 {[%clk 0:00:09]} 56. Rc6 {[%clk 0:00:05]}  Rxh3 {[%clk 0:00:06]} 57. Kxc5 {[%clk 0:00:05]}  Rg3 {[%clk 0:00:06]} 58. d6 {[%clk 0:00:03]}  Rxg5+ {[%clk 0:00:06]} 59. Kb6 {[%clk 0:00:04]}  Rd5 {[%clk 0:00:06]} 60. Kc7 {[%clk 0:00:03]}  Kh6 {[%clk 0:00:05]} 61. d7 {[%clk 0:00:04]}  Rxd7+ {[%clk 0:00:05]} 62. Kxd7 {[%clk 0:00:05]}  Kg5 {[%clk 0:00:05]} 63. Ke7 {[%clk 0:00:03]}  f5 {[%clk 0:00:05]} 64. Rc1 {[%clk 0:00:04]}  f4 {[%clk 0:00:05]} 65. Ke6 {[%clk 0:00:03]}  Kg4 {[%clk 0:00:05]} 66. Rg1+ {[%clk 0:00:03]}  Kf3 {[%clk 0:00:05]} 67. Rxg6 {[%clk 0:00:03]}  Ke3 {[%clk 0:00:05]} 68. Kf5 {[%clk 0:00:03]}  f3 {[%clk 0:00:06]} 69. Re6+ {[%clk 0:00:03]}  Kd2 {[%clk 0:00:04]} 70. Kg4 {[%clk 0:00:03]}  f2 {[%clk 0:00:04]} 71. Rf6 {[%clk 0:00:02]}  Ke2 {[%clk 0:00:04]} 72. Kg3 {[%clk 0:00:02]}  f1=Q {[%clk 0:00:04]} 73. Rxf1 {[%clk 0:00:03]}  Kxf1 {[%clk 0:00:05]} 1/2-1/2


[Site "https://www.chess.com"]